Cogmind - Beta 11 @@@ ROGUE MODE // 2022.04.17 @ 17:19:25 Player: Shadow Pussy wanter Result: Self-destructed Performance ------------- Evolutions (4) 2000 Regions Visited (5) 1000 Robots Destroyed (57) 285 Value Destroyed (1738) 1738 Prototype IDs (7) 140 Alien Tech Used (0) 0 Bonus (0) 0 TOTAL SCORE: 5163 Bonus ------- None Cogmind --------- Core Integrity 315/850 Matter 76/300 Energy 93/100 System Corruption 6% Temperature Cool (0) Movement Core (50) Location -6/Factory Parts ------- > --- POWER (1) -------- (None) > --- PROPULSION (4) --- (None) > --- UTILITY (6) ------ (None) > --- WEAPON (4) ------- (None) > --- INVENTORY (5) ---- Large Matter Pod (150) Improved Heavy Armor Plating System Shield Heavy Particle Gun Peak State ------------ > --- POWER ------------ Enhanced Nuclear Core > --- PROPULSION ------- Light Treads Medium Treads Aluminum Leg Compact Wheel > --- UTILITY ---------- Improved Heat Sink Improved Heat Sink Huge Storage Unit Advanced Sensor Array Improved Medium Armor Plating Hardlight Generator > --- WEAPON ----------- Heavy Particle Gun Heavy Laser Gauss Rifle Flak Gun > --- INVENTORY -------- Enhanced Nuclear Core Medium Matter Pod Large Matter Pod Improved Sensor Array Improved Signal Interpreter Improved Heavy Armor Plating EM Disruption Field System Shield Heavy EM Shotgun Heavy Particle Gun Heavy Laser Proton Cannon Heavy Plasma Cannon Improved Proton Missile Launcher Rocket Launcher [Rating: 53] Favorites ----------- Power Enhanced Nuclear Core Engine Light Ion Engine Power Core Enhanced Nuclear Core Propulsion Light Treads Treads Light Treads Leg Aluminum Leg Wheel Compact Wheel Flight Unit VTOL Module Utility Improved Heat Sink Device Improved Heat Sink Storage Large Storage Unit Processor Machine Analyzer Protection Improved Medium Armor Plating Weapon Heavy Particle Gun Energy Gun Heavy Particle Gun Energy Cannon Advanced Beam Cannon Ballistic Gun Gauss Rifle Launcher Rocket Launcher Build | -11 -10 -9 -8 -7 -6 ------- Run | Scr Mat Mat Mat Fac Fac Slots Evolved 8 | . . 2 2 2 2 Power . | . . . . . . Propulsion 2 | . . . 1 1 . Utility 4 | . . . 1 1 2 Weapon 2 | . . 2 . . . Parts Attached 82 | 6 5 8 19 24 20 Power 7 | 1 . . 2 2 2 Engine 3 | 1 . . 2 . . Core 4 | . . . . 2 2 Reactor . | . . . . . . Propulsion 20 | 2 4 1 4 7 2 Treads 14 | 1 2 1 4 5 1 Leg 1 | . . . . 1 . Wheel 4 | 1 2 . . . 1 Hover . | . . . . . . Flight 1 | . . . . 1 . Utility 20 | 1 1 2 3 7 6 Device 12 | . . 1 2 5 4 Storage 3 | 1 1 . . . 1 Processor 1 | . . . . . 1 Hackware . | . . . . . . Protection 4 | . . 1 1 2 . Artifact . | . . . . . . Weapon 35 | 2 . 5 10 8 10 Energy Gun 13 | . . 3 5 3 2 Energy Cannon 2 | . . 1 1 . . Ballistic Gun 12 | 2 . . 3 4 3 Ballistic Cannon . | . . . . . . Launcher 8 | . . 1 1 1 5 Special Weapon . | . . . . . . Impact Weapon . | . . . . . . Slashing Weapon . | . . . . . . Piercing Weapon . | . . . . . . Special Melee Weapon . | . . . . . . Unidentified Prototypes 7 | . . 1 3 1 2 Corrupted Parts 1 | . . . 1 . . System Corruption 1 | . . . 1 . . Parts Lost 31 | . . 4 4 4 19 Power 4 | . . . 1 . 3 Propulsion 9 | . . 1 1 3 4 Utility 8 | . . 1 . 1 6 Weapon 10 | . . 2 2 . 6 Highest Loss Streak 18 | . . 3 4 2 18 To Critical Strikes . | . . . . . . Average Slot Usage (%) 94 | . 85 94 98 97 94 Engine 4 | . 14 11 8 . . Core 3 | . . . . 6 5 Treads 17 | . 20 13 26 19 12 Leg 3 | . . . . 7 5 Wheel 3 | . 7 8 . . 3 Device 15 | . . . 15 14 25 Storage 8 | . 14 11 9 7 6 Protection 5 | . . 8 2 6 5 Energy Gun 15 | . . 22 24 18 12 Ballistic Gun 13 | . 28 14 6 11 12 Naked Turns 1 | . . . . . 1 Heaviest Build 118 | 12 32 39 46 52 118 Greatest Support 68 | 16 40 40 60 68 48 Greatest Overweight (x) 32 | 1 1 2 . 2 32 Average Overweight (x) 1 | . . 1 . . 2 Largest Inventory Capacity 25 | 8 15 15 15 15 25 Average Capacity 14 | 7 10 15 15 15 16 Most Carried 18 | 6 7 10 15 15 18 Average Carried 12 | 3 6 9 11 14 15 Final Capacity 15 | 8 15 15 15 15 5 Final Carried 15 | 6 7 9 15 15 5 Class Distribution -------------------- 57% | Scavenger-Tank 16% | Mutant 8% | Tank 7% | Scavenger-Gunner 6% | Scavenger-Mutant Dominant Class ---------------- Mutant | -10/Materials Tank | -9/Materials Scavenger-Gunner | -8/Materials Scavenger-Tank | -7/Factory Scavenger-Tank | -6/Factory Resources | -11 -10 -9 -8 -7 -6 ----------- Run | Scr Mat Mat Mat Fac Fac Matter Collected 1752 | 222 325 257 382 395 171 Remotely . | . . . . . . Salvage Created 2066 | . 325 405 449 429 458 Parts 121 | . 16 29 24 24 28 Haulers Intercepted 1 | . . . 1 . . Recyclers Shooed 1 | . . . . . 1 Parts Field Recycled . | . . . . . . Retrieved Matter . | . . . . . . Parts Self-Destructed . | . . . . . . Prevented . | . . . . . . Kills | -11 -10 -9 -8 -7 -6 ------- Run | Scr Mat Mat Mat Fac Fac Combat Hostiles Destroyed 42 | . 7 10 7 9 9 Guns 27 | . 7 9 3 5 3 Cannons 1 | . . . 1 . . AOE 14 | . . 1 3 4 6 Classes Destroyed 13 | . 3 2 2 3 3 Worker 2 | . . . . 1 1 Builder 2 | . . . . 1 1 Hauler 1 | . . . 1 . . Recycler 6 | . 1 1 2 1 1 Mechanic 1 | . . . . . 1 Watcher 3 | . . 1 2 . . Swarmer 18 | . 2 5 4 4 3 Grunt 10 | . 5 3 1 1 . Protector 1 | . . . . . 1 Sentry 5 | . . 2 1 2 . Specialist 1 | . . . . . 1 Hunter 2 | . . . 1 . 1 Programmer 5 | . . . . 2 3 Best Kill Streak 6 | . 4 6 4 5 3 Combat Bots Only 6 | . 4 6 4 4 3 Max Kills in Single Turn 3 | . 2 2 3 1 2 Gunslinging 1 | . 1 . . . . Exploded 3 | . . 1 3 1 2 Melee . | . . . . . . Uniques/NPCs Destroyed . | . . . . . . Combat | -11 -10 -9 -8 -7 -6 -------- Run | Scr Mat Mat Mat Fac Fac Damage Taken 4232 | 6 389 598 306 762 2171 Core 806 | 6 105 75 7 78 535 Absorbed by Shields 24 | . . . . . 24 Regen/Repaired (Parts) 214 | . . . 111 . 103 Core Remaining (%) 83 | 97 55 81 98 88 . Volleys Fired 127 | . 39 21 22 19 26 Largest 4 | . 2 4 4 4 4 Hottest 215 | . 40 150 215 180 180 Shots Fired 333 | . 78 65 76 55 59 Gun 303 | . 78 64 66 50 45 Cannon 8 | . . . 8 . . Launcher 22 | . . 1 2 5 14 Special . | . . . . . . Kinetic 162 | . 78 21 16 24 23 Thermal 129 | . . 24 57 26 22 Explosive 20 | . . 1 2 5 12 Electromagnetic 22 | . . 19 1 . 2 Robot Hit Streak 13 | . 9 6 7 12 13 Robot Miss Streak 7 | . 6 7 4 3 6 Penetration Max . | . . . . . . Secondary Targets 8 | . 1 5 1 1 . Max Gunslinging Chain 1 | . 1 1 1 1 . Shots Hit Robots 193 | . 45 46 38 36 28 Core Hits 126 | . 15 23 19 26 43 Critical Kills . | . . . . . . Critical Parts Destroyed . | . . . . . . Critical Strikes 3 | . . . 1 2 . Burn 3 | . . . 1 2 . Melee Attacks . | . . . . . . Impact . | . . . . . . Slashing . | . . . . . . Piercing . | . . . . . . Sneak Attacks . | . . . . . . Combat Hostiles . | . . . . . . Follow-up Attacks . | . . . . . . Damage Inflicted 5635 | 12 553 561 802 1109 2598 Guns 2740 | . 549 495 490 734 472 Cannons 83 | . . . 83 . . Explosions 2779 | . . 66 212 375 2126 Melee . | . . . . . . Ramming 33 | 12 4 . 17 . . Kinetic 1290 | . 549 123 43 321 254 Thermal 1812 | . . 279 522 413 598 Explosive 1956 | . . . 212 375 1369 Electromagnetic 544 | . . 159 8 . 377 Impact . | . . . . . . Slashing . | . . . . . . Piercing . | . . . . . . Highest Corruption 6 | . . . 1 4 6 Average Corruption 1 | . . . 1 2 1 Corruption Purged . | . . . . . . Corruption Blocked . | . . . . . . Effects 16 | . . . 9 4 3 Message Errors 1 | . . . 1 . . Matter Fused 3 | . . . 2 . 1 Heat Flow Errors 5 | . . . 2 1 2 Energy Discharges 4 | . . . 1 3 . Data Loss (minor) 1 | . . . 1 . . Data Loss (major) 1 | . . . 1 . . Weapon Failures 1 | . . . 1 . . Overload Shots . | . . . . . . Overflow Damage 116 | . . . 23 3 90 Projectiles 3 | . . . 3 . . Explosions 113 | . . . 20 3 90 Melee . | . . . . . . Knockbacks . | . . . . . . Impact . | . . . . . . Kinetic . | . . . . . . Secondary . | . . . . . . Self-Inflicted Damage 271 | 6 2 40 20 21 182 Shots 9 | . . 1 1 1 6 Rammed 7 | 1 1 . 3 1 1 Targets Rammed 7 | 1 1 . 3 1 1 Kicked . | . . . . . . Crushed . | . . . . . . Highest Temperature 544 | . 20 544 477 110 165 Average Temperature 132 | . 4 212 143 46 23 Received Heat Transfer 687 | . 219 144 90 144 90 Effects 13 | . . 11 2 . . Shutdowns 3 | . . 2 1 . . Energy Bleed 4 | . . 4 . . . Interference 3 | . . 3 . . . Matter Decay 2 | . . 1 1 . . Damage (minor) 1 | . . 1 . . . Siege Activations . | . . . . . . Robots Corrupted . | . . . . . . Combat Hostiles . | . . . . . . Parts Fried . | . . . . . . Impact Corruptions . | . . . . . . Robots Melted . | . . . . . . Combat Hostiles . | . . . . . . Parts Melted 4 | . . . 2 2 . Heat Transferred 3316 | . . 490 1168 851 807 Parts Sabotaged . | . . . . . . Parts Stolen . | . . . . . . Parts Stripped . | . . . . . . Power Chain Reactions 3 | . . 1 . . 2 Missiles Intercepted . | . . . . . . Alert | -11 -10 -9 -8 -7 -6 ------- Run | Scr Mat Mat Mat Fac Fac Peak Influence 392 | . 208 376 392 224 326 Initial 158 | . . 87 158 92 31 Average 136 | . 114 195 264 95 109 Maximum Alert Level 1 | . 1 1 1 1 1 Low Security (%) 72 | 100 91 54 20 97 71 Level 1 27 | . 8 45 79 2 28 Level 2 . | . . . . . . Level 3 . | . . . . . . Level 4 . | . . . . . . Level 5 . | . . . . . . High Security . | . . . . . . Max Security . | . . . . . . Squads Dispatched 12 | . 3 2 2 2 3 Investigation 4 | . 1 2 1 . . Extermination 4 | . . . . 2 2 Reinforcement 4 | . 2 . 1 . 1 Assault . | . . . . . . Garrison . | . . . . . . Intercept . | . . . . . . Searches Triggered . | . . . . . . Construction Impeded 1 | . . . . . 1 Haulers Reinforced . | . . . . . . Active Scanning Responses . | . . . . . . Cargo Convoy Interrupts 1 | . . . . . 1 Stealth | -11 -10 -9 -8 -7 -6 --------- Run | Scr Mat Mat Mat Fac Fac Distress Signals 4 | . 1 2 1 . . Communications Jammed . | . . . . . . Distress Signals . | . . . . . . Times Spotted 83 | . 14 14 17 16 22 Peak Tracking Total 12 | . 3 5 5 6 12 Tactical Retreats 4 | . 1 . . 1 2 Traps | -11 -10 -9 -8 -7 -6 ------- Run | Scr Mat Mat Mat Fac Fac Traps Triggered 8 | . 1 1 1 5 . Indirectly . | . . . . . . Trap Hack Attempts . | . . . . . . Triggered . | . . . . . . Disarmed . | . . . . . . Reprogrammed . | . . . . . . Reused . | . . . . . . Traps Extracted . | . . . . . . Installed . | . . . . . . Triggered . | . . . . . . Machines | -11 -10 -9 -8 -7 -6 ---------- Run | Scr Mat Mat Mat Fac Fac Machines Disabled 15 | . . . . . 15 Max in Single Turn 8 | . . . . . 8 Machines Sabotaged . | . . . . . . Garrisons Compromised . | . . . . . . Overloaded Fab Kills . | . . . . . . Hacking | -11 -10 -9 -8 -7 -6 --------- Run | Scr Mat Mat Mat Fac Fac Machines Accessed 11 | . . 4 2 3 2 Terminals 8 | . . 4 1 2 1 Fabricators . | . . . . . . Repair Stations 2 | . . . 1 . 1 Recycling Units . | . . . . . . Scanalyzers 1 | . . . . 1 . Garrison Access . | . . . . . . Total Hacks 30 | . . 11 7 8 4 Successful 15 | . . 7 3 3 2 Failed 15 | . . 4 4 5 2 Catastrophic 4 | . . 3 . 1 . Database Lockouts . | . . . . . . Manual 20 | . . 11 4 3 2 Terminals 22 | . . 11 4 5 2 Fabricators . | . . . . . . Repair Stations 5 | . . . 3 . 2 Recycling Units . | . . . . . . Scanalyzers 3 | . . . . 3 . Garrison Access . | . . . . . . Terminal Hacks 1 | . . 1 . . . Recall Investigation 1 | . . 1 . . . Fabricator Hacks . | . . . . . . Repair Station Hacks 4 | . . . 2 . 2 Scan Component 2 | . . . 1 . 1 Repair 2 | . . . 1 . 1 Recycling Unit Hacks . | . . . . . . Scanalyzer 1 | . . . . 1 . Insert Component 1 | . . . . 1 . Garrison Access Hacks . | . . . . . . Unauthorized Hacks 9 | . . 6 1 2 . Terminals 9 | . . 6 1 2 . Track 1 | . . 1 . . . Botnet 7 | . . 4 1 2 . Operators 1 | . . 1 . . . Fabricators . | . . . . . . Repair Stations . | . . . . . . Recycling Units . | . . . . . . Scanalyzers . | . . . . . . Garrison Access . | . . . . . . Data Cores Recovered . | . . . . . . Used . | . . . . . . Hacking Detections 10 | . . 4 1 3 2 Full Trace Events 1 | . . 1 . . . Feedback Events . | . . . . . . Feedback Blocked . | . . . . . . Robot Schematics Acquired . | . . . . . . Robots Built . | . . . . . . Authchips . | . . . . . . Time . | . . . . . . Total Robot Build Rating . | . . . . . . Part Schematics Acquired . | . . . . . . Parts Built . | . . . . . . Authchips . | . . . . . . Time . | . . . . . . Total Part Build Rating . | . . . . . . Parts Repaired 2 | . . . 1 . 1 Time 39 | . . . 26 . 13 Parts Recycled . | . . . . . . Recycled Matter . | . . . . . . Retrieved Matter . | . . . . . . Retrieved Components . | . . . . . . Parts Scanalyzed . | . . . . . . Part Schematics Acquired . | . . . . . . Parts Damaged . | . . . . . . Bothacking | -11 -10 -9 -8 -7 -6 ------------ Run | Scr Mat Mat Mat Fac Fac Used RIF Installer . | . . . . . . Robots Hacked . | . . . . . . Non-combat . | . . . . . . Combat . | . . . . . . Robot Hacks Applied . | . . . . . . Relay Couplers Released . | . . . . . . Fabnet Peak Effective % . | . . . . . . Robots Rewired . | . . . . . . Allies Hacked . | . . . . . . Hacks Repelled . | . . . . . . Allies | -11 -10 -9 -8 -7 -6 -------- Run | Scr Mat Mat Mat Fac Fac Total Allies . | . . . . . . Largest Group . | . . . . . . Highest-Rated Group . | . . . . . . Highest-Rated Ally . | . . . . . . Total Orders . | . . . . . . Ally Attacks . | . . . . . . Total Damage . | . . . . . . Kills . | . . . . . . Allies Corrupted . | . . . . . . Allies Melted . | . . . . . . Intel | -11 -10 -9 -8 -7 -6 ------- Run | Scr Mat Mat Mat Fac Fac Robot Analysis Total . | . . . . . . Derelict Logs Recovered . | . . . . . . Drone Launches . | . . . . . . Drone Recoveries . | . . . . . . Exploration | -11 -10 -9 -8 -7 -6 ------------- Run | Scr Mat Mat Mat Fac Fac Turns Passed 3234 | 59 360 348 481 929 1057 Spaces Moved 1505 | 45 201 186 189 439 445 Core 9 | 6 . . . . 3 Treads 901 | . 31 40 189 439 202 Legs . | . . . . . . Wheels 595 | 39 170 146 . . 240 Hover . | . . . . . . Flight . | . . . . . . Fastest Speed 50 | 50 100 115 160 160 50 Average Speed 167 | 95 113 135 160 186 196 Slowest Speed 1650 | 100 160 160 160 320 1650 Overloaded Moves . | . . . . . . Propulsion Burnouts . | . . . . . . Robots Hopped . | . . . . . . Cave-ins Triggered 1 | . . . . . 1 Exploration Rate (%) 19 | 3 36 25 22 16 12 Regions Visited 5 Branch Regions . Pre-discovered Areas . | . . . . . . Known Exits Taken . | . . . . . . Unknown Exits Taken 5 | 1 1 1 1 1 . Scrap Searched . | . . . . . . Spaces Dug 38 | . . . . . 38 Terrain Destroyed 183 | . . 15 16 13 139 Melee . | . . . . . . Projectile 2 | . . . . . 2 AOE 181 | . . 15 16 13 137 Terrain Rammed . | . . . . . . Walls Destroyed . | . . . . . . Machines Disabled . | . . . . . . Actions | -11 -10 -9 -8 -7 -6 --------- Run | Scr Mat Mat Mat Fac Fac Total 1959 | 57 252 232 324 512 582 Wait 169 | . 5 12 68 12 72 Move 1502 | 45 200 185 189 438 445 Hop . | . . . . . . Pick Up 40 | 6 1 6 12 6 9 Fast Attach 32 | 6 1 3 9 8 5 Attach 19 | . . 4 4 4 7 Detach 2 | . . . 1 . 1 Swap 31 | . 4 1 6 12 8 Drop 32 | . 1 . 11 12 8 Fire 127 | . 39 21 22 19 26 Melee . | . . . . . . Ram 1 | . 1 . . . . Kick . | . . . . . . Crush 4 | . . . 2 1 1 Escape Stasis . | . . . . . . Rewire . | . . . . . . Trap . | . . . . . . Miscellaneous . | . . . . . . Route ------- -11/Scrapyard -10/Materials (discovered 2 exits: *Mat / [*Min]) -9/Materials -8/Materials -7/Factory -6/Factory History --------- Turn | Location | Event 21 | -11/Scrapyard | Discovered new exit (range 16) 60 | -11/Scrapyard | Entered Materials 128 | -10/Materials | Discovered new exit (range 5) 220 | -10/Materials | Discovered new exit (range 13) 338 | -10/Materials | Build established: Mutant 420 | -10/Materials | Entered another Materials area 420 | -9/Materials | Evolved 2 slots: Weapon x2 713 | -9/Materials | Lost 3 parts (1n1u1w) 731 | -9/Materials | Discovered new exit (range 16) 768 | -9/Materials | Entered another Materials area 768 | -8/Materials | Evolved 2 slots: Propulsion x1, Utility x1 866 | -8/Materials | Lost 4 parts (1p1n2w) 1094 | -8/Materials | Repaired Lgt. Treads 1224 | -8/Materials | Discovered new exit (range 15) 1249 | -8/Materials | Entered Factory 1249 | -7/Factory | Evolved 2 slots: Propulsion x1, Utility x1 1554 | -7/Factory | Build established: Scavenger-Tank 2113 | -7/Factory | Discovered new exit (range 9) 2178 | -7/Factory | Entered another Factory area 2178 | -6/Factory | Evolved 2 slots: Utility x2 2457 | -6/Factory | Repaired Lgt. Treads 3187 | -6/Factory | Cargo convoy interrupted 3228 | -6/Factory | Core integrity fell below 50% 3230 | -6/Factory | Found Prototype Launcher 3230 | -6/Factory | Identified Mni. Smartbomb Launcher 3232 | -6/Factory | Crushed by falling debris 3234 | -6/Factory | Released all parts (1) 3235 | -6/Factory | Self-destructed Last Messages --------------- 03226_ U-05 Engineer builds a Wall. 03226_ U-05 Engineer lays Concrete. 03227_ Enh. Nuclear Core destroyed. 03227_ U-05 Engineer lays Concrete. 03230_ U-05 Engineer builds a Wall. 03230_ Acquired Prototype Launcher. 03230_ Identified Mni. Smartbomb Launcher. 03230_ U-05 Engineer lays Concrete. 03231_ U-05 Engineer builds a Wall. 03231_ Destroyed Wheel. 03231_ Destroyed Terrain Scanner. 03231_ U-05 Engineer destroyed. 03231_ P-60 Hacker destroyed. 03231_ ALERT: Construction progress impeded, dispatching reinforcements to local area. 03232_ The unstable cave ceiling collapses. 03232_ Crushed by falling debris. 03232_ Enh. Nuclear Core destroyed. 03234_ U-05 Engineer builds a Wall. 03234_ Released Huge Storage Unit. Map ----- +----------------------------------------------------+ | ???????????????????"""?"""???????????????????????? | | ???????????????????"""?"""???????????????????????? | | ???????????????????"""?"""???????????????????????? | | ?????????????????????????????????????????????????? | | ?????????????????????????????????????????????????? | | ?????????????????????????????????????????????????? | | ?????????????????????????????????????????????????? | | ?????????????????????????????????????????????????? | | ?????????????????????????????????????????????????? | | ??????????????????????? ?????????????????????????? | | ?????????????????????? ????????????????????????? | | ????????????????????? #?????????????""""??????? | | ????????????????????? #?????????????""""??????? | | ????????????????????? ? #?????????????""""??????? | | ?????????????########+##/######????????""""??????? | | ?????????????# ! #????????""""??????? | | ?????????????+ """""R""""" #????????""""??????? | | ?????????????# """""u""""" #??????????????????? | | ?????????????# """ """ #??????????????????? | | ?????????????# u #???#####??????????? | | ?????????????# """" """" #???# ??? #??? | | ?????????????# """ " " #???# +??? | | ?????????????# " %= % #???# """ #??? | | ?????????????# %!%*[t #???# ""F"" ]#??? | | ?????????????####### | %%!!####### "" "" ???? | | ?????????????????## ][@!]=! # ?#??? | | ?????????????????# %x [*[]/ # """ #??? | | ?????????????????## x/*%*]/ # !! """ #### | | ??????????????????### m=#u![! R# !] """ | | ????????????????????# =#]!!! p/ | | ???????????????????# # !#!!![ # | | ???????????????????#######] # ###+###??? | | ?????????????????????????# ## ##????????? | | ?????????????????????????# ## #?????????? | | ?????????????????????????######/#### #?????????? | | ????????????????????# + #?????????? | | ???????????????????????""" """ """ # #?????????? | | ???????????????????????"""?""" Y" # #?????????? | | ???????????????????????"""?""" """?# #?????????? | | ######?????????????????????? ?# #?????????? | | #????????????????????? ? ??# #?????????? | | #??????????????????????#####??# #?????????? | | #########?????????????????????# #?????????? | | # #?????????????????????# #?????????? | | # #?????????????????????# #?????????? | | # #???????????????????### ###???????? | | + #???????????????????# #???????? | | # #???????????????????# #???????? | | # ##################### "" #???????? | | # T #???????? | +----------------------------------------------------+ Best States ------------- Heat Dissipation 65 Energy Generation 17 Energy Capacity 300 Matter Stores 300 Matter Capacity 300 Sight Range 16 Robot Scan Range 16 Terrain Scan Density 10 Armor Coverage 225 Weapon Cycling 15 Evasion (%) 40 Recoil Reduction 3 Item Schematics ----------------- None Robot Schematics ------------------ None Fabricated ------------ Nothing Alien Tech Used ----------------- None Achievements -------------- None Challenges ------------ None Game ------ Seed DiametricRecyclingInjector Manual? 0 Play Time 00:27:56 Cumulative 71.6 hours Start 2022.04.17 @ 16:49:01 End 2022.04.17 @ 17:19:25 Sessions 1 Manual Loads 0 Difficulty Rogue Special Mode None Game No. 111 Rogue 111 Adventurer 0 Explorer 0 Win Type - Total 1 Types 1/0/0/0/0/0/0/0/0 Lore% 50 Gallery% 54 Achievement% 39 Wizard Run 0 Options --------- ASCII 0 Keyboard 0 Movement Numpad Keybinds 0 Fullscreen 1 Font 18/SmallcapsGlow Map View 76x50 Tactical HUD 1 Map Filters NONE Filters NONE Steam 1 RUN: 1a2d45d6-5aba-4037-977a-20ab950eba3d